[Event "Ural District-ch Women 2020"]
[Site "Chelyabinsk"]
[Date "2020.09.30"]
[Round "4.1"]
[White "Mukhina, Jana"]
[Black "Semenova, Elena"]
[Result "0-1"]
[ECO "A09"]
[WhiteElo "2068"]
[BlackElo "2283"]
[Annotator "ChessBase"]
[PlyCount "110"]
[EventDate "2020.10.01"]
[EventType "swiss"]
[EventCountry "RUS"]
[SourceTitle "playchess.com"]
[Source "ChessBase"]
[SourceQuality "1"]
[TimeControl "5400+30"]

1. Nf3 {[%emt 0:00:00]} d5 {[%emt 0:00:00]} 2. c4 {[%emt 0:00:00]} d4 {[%emt 0:00:00]} 3. b4 {[%emt 0:00:22]} g6 {[%emt 0:01:34]} 4. g3 {[%emt 0:00:32]} Bg7 {[%emt 0:00:27]} 5. d3 {[%emt 0:00:06]} a5 {[%emt 0:02:44]} 6. b5 {[%emt 0:00:47]} c5 {[%emt 0:05:13]} 7. bxc6 {[%emt 0:12:28]} Nxc6 {[%emt 0:03:43]} 8. Na3 {[%emt 0:03:16]} e5 {[%emt 0:00:50]} 9. Nb5 {[%emt 0:11:08]} Nge7 {[%emt 0:04:56]} 10. Bb2 {[%emt 0:15:38]} O-O {[%emt 0:01:50]} 11. Bg2 {[%emt 0:04:07]} Na7 {[%emt 0:03:59]} 12. Na3 {[%emt 0:19:33]} Bd7 {[%emt 0:02:50]} 13. O-O {[%emt 0:00:21]} Bc6 {[%emt 0:09:03]} 14. Qd2 {[%emt 0:08:55]} Nf5 {[%emt 0:02:03]} 15. Ne1 {[%emt 0:06:09]} h5 {[%emt 0:04:38]} 16. Bc1 {[%emt 0:02:25]} h4 {[%emt 0:03:37]} 17. Bxc6 {[%emt 0:03:29]} Nxc6 {[%emt 0:06:49]} 18. Nb5 {[%emt 0:02:09]} Bh6 {[%emt 0:07:45]} 19. Qd1 {[%emt 0:00:20]} hxg3 {[%emt 0:00:11]} 20. hxg3 {[%emt 0:00:13]} Bxc1 {[%emt 0:00:34]} 21. Qxc1 {[%emt 0:01:35]} Kg7 {[%emt 0:00:06]} 22. Nf3 {[%emt 0:01:05]} Rh8 {[%emt 0:04:03]} 23. Kg2 {[%emt 0:00:16]} Qd7 {[%emt 0:01:02]} 24. Qb2 {[%emt 0:03:40]} Nh4+ {[%emt 0:18:58]} 25. Nxh4 {[%emt 0:00:56]} g5 {[%emt 0:00:03]} 26. Nf5+ {[%emt 0:01:29]} Qxf5 {[%emt 0:00:02]} 27. Rh1 {[%emt 0:00:04]} Ne7 {[%emt 0:02:40]} 28. Nd6 {[%emt 0:01:24]} Qd7 {[%emt 0:03:27]} 29. Ne4 {[%emt 0:00:55]} Qc6 {[%emt 0:03:44]} 30. f3 {[%emt 0:00:13]} Nf5 {[%emt 0:02:14]} 31. Rab1 {[%emt 0:01:03]} Ne3+ {[%emt 0:00:18]} 32. Kf2 {[%emt 0:00:06]} Rxh1 {[%emt 0:02:46]} 33. Rxh1 {[%emt 0:00:02]} Rh8 {[%emt 0:01:47]} 34. Rxh8 {[%emt 0:00:31]} Nd1+ {[%emt 0:00:03]} 35. Kg2 {[%emt 0:01:40]} Nxb2 {[%emt 0:00:03]} 36. Rh5 {[%emt 0:00:08]} f6 {[%emt 0:00:32]} 37. g4 {[%emt 0:00:07]} Nd1 {[%emt 0:00:08]} 38. Rh1 {[%emt 0:00:27]} Ne3+ {[%emt 0:00:03]} 39. Kf2 {[%emt 0:00:07]} Qb6 {[%emt 0:01:34]} 40. a4 {[%emt 0:01:26]} Qb4 {[%emt 0:00:46]} 41. Ra1 {[%emt 0:00:32]} b6 {[%emt 0:00:29]} 42. c5 {[%emt 0:00:37]} bxc5 {[%emt 0:00:22]} 43. Rc1 {[%emt 0:00:03]} Qxa4 {[%emt 0:00:53]} 44. Rxc5 {[%emt 0:00:41]} Qd1 {[%emt 0:00:22]} 45. Ng3 {[%emt 0:00:11]} a4 {[%emt 0:00:55]} 46. Ra5 {[%emt 0:00:23]} Kf8 {[%emt 0:00:32]} 47. Ra8+ {[%emt 0:00:15]} Ke7 {[%emt 0:00:11]} 48. Ra7+ {[%emt 0:00:13]} Kd8 {[%emt 0:00:04]} 49. Ra6 {[%emt 0:00:23]} Nc2 {[%emt 0:01:17]} 50. Ra8+ {[%emt 0:01:32]} Kc7 {[%emt 0:00:04]} 51. Rxa4 {[%emt 0:00:22]} Qe1+ {[%emt 0:00:07]} 52. Kg2 {[%emt 0:00:07]} Ne3+ {[%emt 0:00:02]} 53. Kh3 {[%emt 0:00:20]} Qf2 {[%emt 0:00:12]} 54. Rc4+ {[%emt 0:00:17]} Kb6 {[%emt 0:00:18]} 55. Rb4+ {[%emt 0:00:35]} Ka5 {[%emt 0:00:04]} 0-1

[Event "Ural District-ch Women 2020"]
[Site "Chelyabinsk"]
[Date "2020.09.30"]
[Round "4.2"]
[White "Nasybullina, Dayana"]
[Black "Filippova, Darya"]
[Result "0-1"]
[ECO "C07"]
[WhiteElo "1787"]
[BlackElo "2032"]
[Annotator "ChessBase"]
[PlyCount "114"]
[EventDate "2020.10.01"]
[EventType "swiss"]
[EventCountry "RUS"]
[SourceTitle "playchess.com"]
[Source "ChessBase"]
[SourceQuality "1"]
[TimeControl "5400+30"]

1. e4 {[%emt 0:00:00]} e6 {[%emt 0:05:42]} 2. d4 {[%emt 0:01:49]} d5 {[%emt 0:01:38]} 3. Nd2 {[%emt 0:02:40]} c5 {[%emt 0:10:31]} 4. Ngf3 {[%emt 0:03:31]} cxd4 {[%emt 0:08:00]} 5. exd5 {[%emt 0:00:26]} Qxd5 {[%emt 0:01:34]} 6. Bc4 {[%emt 0:01:10]} Qh5 {[%emt 0:07:02]} 7. O-O {[%emt 0:01:35]} Nf6 {[%emt 0:01:24]} 8. Nxd4 {[%emt 0:06:00]} Qxd1 {[%emt 0:01:04]} 9. Rxd1 {[%emt 0:00:04]} a6 {[%emt 0:00:14]} 10. a4 {[%emt 0:14:28]} Bc5 {[%emt 0:03:07]} 11. N2f3 {[%emt 0:03:34]} O-O {[%emt 0:02:08]} 12. c3 {[%emt 0:02:50]} Nbd7 {[%emt 0:07:34]} 13. b4 {[%emt 0:07:16]} Ba7 {[%emt 0:03:57]} 14. a5 {[%emt 0:06:25]} Ne4 {[%emt 0:03:17]} 15. Bb2 {[%emt 0:20:57]} e5 {[%emt 0:03:59]} 16. Bd5 {[%emt 0:07:59]} exd4 {[%emt 0:11:22]} 17. Bxe4 {[%emt 0:00:36]} Nf6 {[%emt 0:00:14]} 18. Bc2 {[%emt 0:02:33]} dxc3 {[%emt 0:01:06]} 19. Bxc3 {[%emt 0:00:09]} Be6 {[%emt 0:01:30]} 20. Bxf6 {[%emt 0:03:51]} gxf6 {[%emt 0:00:03]} 21. Be4 {[%emt 0:00:45]} Rab8 {[%emt 0:00:34]} 22. Nd4 {[%emt 0:02:58]} Bg4 {[%emt 0:02:10]} 23. Nf3 {[%emt 0:08:25]} Rfe8 {[%emt 0:01:01]} 24. Re1 {[%emt 0:00:48]} Re6 {[%emt 0:04:12]} 25. h3 {[%emt 0:00:28]} Bh5 {[%emt 0:01:51]} 26. Bf5 {[%emt 0:00:29]} Rd6 {[%emt 0:00:29]} 27. g4 {[%emt 0:00:45]} Bg6 {[%emt 0:00:10]} 28. Bxg6 {[%emt 0:00:36]} hxg6 {[%emt 0:00:31]} 29. Rac1 {[%emt 0:00:46]} Rd7 {[%emt 0:00:40]} 30. Red1 {[%emt 0:00:29]} Re7 {[%emt 0:02:16]} 31. Re1 {[%emt 0:00:32]} Rd7 {[%emt 0:01:47]} 32. Rc4 {[%emt 0:00:33]} Kf8 {[%emt 0:00:43]} 33. Rec1 {[%emt 0:00:20]} Rbd8 {[%emt 0:00:29]} 34. Kg2 {[%emt 0:00:27]} Bb8 {[%emt 0:00:40]} 35. Rc8 {[%emt 0:00:32]} Bd6 {[%emt 0:00:38]} 36. R8c4 {[%emt 0:00:35]} Be7 {[%emt 0:00:36]} 37. Rb1 {[%emt 0:00:29]} Rd5 {[%emt 0:00:27]} 38. Rb3 {[%emt 0:00:34]} R8d7 {[%emt 0:00:33]} 39. Rc8+ {[%emt 0:00:15]} Kg7 {[%emt 0:00:20]} 40. Rc4 {[%emt 0:00:20]} Bf8 {[%emt 0:00:53]} 41. h4 {[%emt 0:00:48]} Be7 {[%emt 0:02:15]} 42. Kg3 {[%emt 0:00:41]} Rd3 {[%emt 0:03:44]} 43. Rxd3 {[%emt 0:00:25]} Rxd3 {[%emt 0:00:01]} 44. Kg2 {[%emt 0:00:32]} Rb3 {[%emt 0:01:49]} 45. Rc7 {[%emt 0:00:05]} Bf8 {[%emt 0:00:14]} 46. Rxb7 {[%emt 0:00:46]} Rxb4 {[%emt 0:00:06]} 47. Ra7 {[%emt 0:00:34]} Rxg4+ {[%emt 0:00:09]} 48. Kf1 {[%emt 0:00:31]} Rf4 {[%emt 0:01:53]} 49. Ke2 {[%emt 0:00:28]} Ra4 {[%emt 0:00:35]} 50. Rxa6 {[%emt 0:00:24]} Bb4 {[%emt 0:00:06]} 51. Ra8 {[%emt 0:00:34]} Rxa5 {[%emt 0:00:11]} 52. Rxa5 {[%emt 0:00:10]} Bxa5 {[%emt 0:00:01]} 53. Kf1 {[%emt 0:00:41]} Kh6 {[%emt 0:00:24]} 54. Kg2 {[%emt 0:00:26]} Kh5 {[%emt 0:00:08]} 55. Kh3 {[%emt 0:00:33]} Bb6 {[%emt 0:00:43]} 56. Kg3 {[%emt 0:00:11]} Bc5 {[%emt 0:00:45]} 57. Nd2 {[%emt 0:00:42]} f5 0-1

[Event "Ural District-ch Women 2020"]
[Site "Chelyabinsk"]
[Date "2020.09.30"]
[Round "4.3"]
[White "Shamsutdinova, Karina"]
[Black "Shnayder, Violetta"]
[Result "1-0"]
[ECO "A48"]
[WhiteElo "1763"]
[BlackElo "1923"]
[Annotator "ChessBase"]
[PlyCount "113"]
[EventDate "2020.10.01"]
[EventType "swiss"]
[EventCountry "RUS"]
[SourceTitle "playchess.com"]
[Source "ChessBase"]
[SourceQuality "1"]
[TimeControl "5400+30"]

1. Nf3 {[%emt 0:00:00]} Nf6 {[%emt 0:00:00]} 2. d4 {[%emt 0:00:04]} g6 {[%emt 0:00:20]} 3. c4 {[%emt 0:00:29]} Bg7 {[%emt 0:00:13]} 4. Nc3 {[%emt 0:00:20]} O-O {[%emt 0:00:27]} 5. e4 {[%emt 0:00:22]} d6 {[%emt 0:00:36]} 6. h3 {[%emt 0:00:18]} Nc6 {[%emt 0:01:41]} 7. Be2 {[%emt 0:04:33]} e5 {[%emt 0:01:04]} 8. d5 {[%emt 0:00:32]} Ne7 {[%emt 0:00:22]} 9. g4 {[%emt 0:06:51]} c6 {[%emt 0:10:40]} 10. Be3 {[%emt 0:05:34]} Bd7 {[%emt 0:06:50]} 11. Nd2 {[%emt 0:08:33]} Ne8 {[%emt 0:07:10]} 12. g5 {[%emt 0:05:08]} f5 {[%emt 0:06:51]} 13. f3 {[%emt 0:03:13]} a6 {[%emt 0:05:56]} 14. a4 {[%emt 0:05:17]} Nc7 {[%emt 0:06:53]} 15. a5 {[%emt 0:16:14]} f4 {[%emt 0:08:38]} 16. Bf2 {[%emt 0:00:51]} c5 {[%emt 0:02:23]} 17. h4 {[%emt 0:08:12]} h6 {[%emt 0:01:56]} 18. gxh6 {[%emt 0:05:05]} Bxh6 {[%emt 0:00:36]} 19. Na4 {[%emt 0:04:46]} Nc8 {[%emt 0:00:47]} 20. Qb3 {[%emt 0:02:31]} Rb8 {[%emt 0:01:04]} 21. Nb6 {[%emt 0:05:10]} Be8 {[%emt 0:00:26]} 22. Bf1 {[%emt 0:02:42]} g5 {[%emt 0:07:38]} 23. hxg5 {[%emt 0:02:48]} Bxg5 {[%emt 0:00:10]} 24. Nxc8 {[%emt 0:03:04]} Qxc8 {[%emt 0:02:22]} 25. Rg1 {[%emt 0:00:39]} b5 {[%emt 0:01:13]} 26. Rxg5+ {[%emt 0:01:24]} Kf7 {[%emt 0:00:01]} 27. Qd1 {[%emt 0:02:52]} Bd7 {[%emt 0:00:41]} 28. Bd3 {[%emt 0:00:48]} Rh8 {[%emt 0:00:33]} 29. Ke2 {[%emt 0:00:40]} bxc4 {[%emt 0:00:29]} 30. Nxc4 {[%emt 0:00:28]} Nb5 {[%emt 0:00:03]} 31. Qg1 {[%emt 0:01:06]} Rh7 {[%emt 0:00:16]} 32. Rg6 {[%emt 0:01:01]} Qh8 {[%emt 0:00:50]} 33. Rb1 {[%emt 0:01:37]} Rh6 {[%emt 0:01:45]} 34. Rxh6 {[%emt 0:01:07]} Qxh6 {[%emt 0:00:01]} 35. Nb6 {[%emt 0:00:48]} Bh3 {[%emt 0:00:42]} 36. Bxb5 {[%emt 0:00:40]} axb5 {[%emt 0:00:01]} 37. Qh1 {[%emt 0:01:30]} Rh8 {[%emt 0:00:10]} 38. a6 {[%emt 0:00:37]} Qg7 {[%emt 0:00:52]} 39. a7 {[%emt 0:00:23]} Bg2 {[%emt 0:00:12]} 40. Qg1 {[%emt 0:01:02]} Bxf3+ {[%emt 0:02:29]} 41. Kxf3 {[%emt 0:00:13]} Rh3+ {[%emt 0:00:02]} 42. Ke2 {[%emt 0:00:11]} Qh7 {[%emt 0:00:02]} 43. Qg2 {[%emt 0:01:09]} f3+ {[%emt 0:00:57]} 44. Qxf3+ {[%emt 0:00:03]} Rxf3 {[%emt 0:00:03]} 45. Kxf3 {[%emt 0:00:13]} Qh5+ {[%emt 0:00:03]} 46. Ke3 {[%emt 0:01:09]} Qg5+ {[%emt 0:00:06]} 47. Kd3 {[%emt 0:00:35]} c4+ {[%emt 0:00:00]} 48. Kc3 {[%emt 0:00:16]} Qf4 {[%emt 0:00:41]} 49. Kb4 {[%emt 0:00:51]} Qxf2 {[%emt 0:00:06]} 50. a8=Q {[%emt 0:00:19]} c3 {[%emt 0:01:07]} 51. Qb7+ {[%emt 0:00:17]} Kg6 {[%emt 0:00:02]} 52. bxc3 {[%emt 0:00:23]} Qc5+ {[%emt 0:00:05]} 53. Kb3 {[%emt 0:00:14]} b4 {[%emt 0:00:07]} 54. Qc6 {[%emt 0:00:21]} Qe3 {[%emt 0:00:14]} 55. Qxd6+ {[%emt 0:00:09]} Kg5 {[%emt 0:00:11]} 56. Qxe5+ {[%emt 0:00:05]} Kg4 {[%emt 0:00:01]} 57. Rg1+ {[%emt 0:00:48]} 1-0

[Event "Ural District-ch Women 2020"]
[Site "Chelyabinsk"]
[Date "2020.09.30"]
[Round "4.4"]
[White "Baranova, Elizaveta"]
[Black "Chigaeva, Anastasia"]
[Result "0-1"]
[ECO "A07"]
[WhiteElo "1620"]
[BlackElo "2175"]
[Annotator "ChessBase"]
[PlyCount "116"]
[EventDate "2020.10.01"]
[EventType "swiss"]
[EventCountry "RUS"]
[SourceTitle "playchess.com"]
[Source "ChessBase"]
[SourceQuality "1"]
[TimeControl "5400+30"]

1. Nf3 {[%emt 0:00:00]} d5 {[%emt 0:00:09]} 2. g3 {[%emt 0:00:00]} c6 {[%emt 0:00:40]} 3. Bg2 {[%emt 0:00:00]} Nf6 {[%emt 0:00:15]} 4. O-O {[%emt 0:00:00]} Bg4 {[%emt 0:00:15]} 5. d4 {[%emt 0:00:11]} e6 {[%emt 0:01:03]} 6. Nbd2 {[%emt 0:00:29]} Bd6 {[%emt 0:01:06]} 7. Re1 {[%emt 0:00:38]} O-O {[%emt 0:03:06]} 8. e4 {[%emt 0:04:44]} dxe4 {[%emt 0:07:37]} 9. Nxe4 {[%emt 0:00:08]} Nxe4 {[%emt 0:03:30]} 10. Rxe4 {[%emt 0:00:04]} Bf5 {[%emt 0:02:22]} 11. Re1 {[%emt 0:02:29]} h6 {[%emt 0:07:33]} 12. c3 {[%emt 0:05:49]} Nd7 {[%emt 0:00:59]} 13. Be3 {[%emt 0:07:40]} Qc7 {[%emt 0:03:32]} 14. Qd2 {[%emt 0:03:39]} Rfd8 {[%emt 0:05:34]} 15. Nh4 {[%emt 0:13:25]} Bh7 {[%emt 0:02:30]} 16. f4 {[%emt 0:02:12]} Nf6 {[%emt 0:02:10]} 17. Bh3 {[%emt 0:02:57]} c5 {[%emt 0:04:53]} 18. Qf2 {[%emt 0:02:04]} Ne4 {[%emt 0:16:51]} 19. Qf3 {[%emt 0:02:32]} Be7 {[%emt 0:05:55]} 20. f5 {[%emt 0:05:26]} Ng5 {[%emt 0:03:18]} 21. Bxg5 {[%emt 0:02:07]} hxg5 {[%emt 0:01:06]} 22. fxe6 {[%emt 0:30:39]} gxh4 {[%emt 0:03:09]} 23. exf7+ {[%emt 0:00:06]} Kh8 {[%emt 0:01:50]} 24. Bf5 {[%emt 0:01:25]} g6 {[%emt 0:06:50]} 25. Bxg6 {[%emt 0:01:20]} Bxg6 {[%emt 0:03:29]} 26. Re6 {[%emt 0:00:01]} Rd6 {[%emt 0:11:17]} 27. Rae1 {[%emt 0:00:02]} Rxe6 {[%emt 0:01:23]} 28. Rxe6 {[%emt 0:00:02]} Bh7 {[%emt 0:00:59]} 29. Qe3 {[%emt 0:01:30]} Bf8 {[%emt 0:00:31]} 30. Re8 {[%emt 0:00:32]} Rb8 {[%emt 0:00:30]} 31. Qe6 {[%emt 0:01:13]} Kg7 {[%emt 0:00:19]} 32. d5 {[%emt 0:01:09]} Rd8 {[%emt 0:00:45]} 33. g4 {[%emt 0:03:32]} Rd6 {[%emt 0:00:27]} 34. Qe5+ {[%emt 0:02:18]} Kxf7 {[%emt 0:00:19]} 35. Re6 {[%emt 0:00:14]} Be7 {[%emt 0:00:31]} 36. g5 {[%emt 0:01:09]} Qd8 {[%emt 0:00:33]} 37. Qf4+ {[%emt 0:00:39]} Kg8 {[%emt 0:00:34]} 38. Qe3 {[%emt 0:02:03]} Rxe6 {[%emt 0:00:28]} 39. Qxe6+ {[%emt 0:00:02]} Kg7 {[%emt 0:00:24]} 40. Qh6+ {[%emt 0:00:08]} Kh8 {[%emt 0:00:30]} 41. g6 {[%emt 0:00:15]} Qg8 {[%emt 0:00:05]} 42. Qxh7+ {[%emt 0:00:15]} Qxh7 {[%emt 0:00:05]} 43. gxh7 {[%emt 0:00:06]} c4 {[%emt 0:00:20]} 44. Kf2 {[%emt 0:00:19]} Kxh7 {[%emt 0:00:11]} 45. Ke3 {[%emt 0:00:08]} Kg6 {[%emt 0:00:56]} 46. Ke4 {[%emt 0:00:36]} Kf6 {[%emt 0:01:18]} 47. h3 {[%emt 0:00:16]} Bc5 {[%emt 0:00:44]} 48. b3 {[%emt 0:00:15]} b5 {[%emt 0:00:28]} 49. bxc4 {[%emt 0:01:25]} bxc4 {[%emt 0:00:02]} 50. d6 {[%emt 0:00:13]} Ke6 {[%emt 0:00:36]} 51. d7 {[%emt 0:00:07]} Bb6 {[%emt 0:00:32]} 52. a3 {[%emt 0:00:13]} Kxd7 {[%emt 0:00:47]} 53. Kd5 {[%emt 0:00:05]} Bf2 {[%emt 0:00:32]} 54. Kxc4 {[%emt 0:00:05]} Kc6 {[%emt 0:00:08]} 55. Kb4 {[%emt 0:00:16]} Bc5+ {[%emt 0:00:26]} 56. Kb3 {[%emt 0:00:10]} Kb5 {[%emt 0:00:09]} 57. a4+ {[%emt 0:00:06]} Ka5 {[%emt 0:00:19]} 58. Kc4 {[%emt 0:00:06]} Be7 {[%emt 0:00:11]} 0-1

[Event "Ural District-ch Women 2020"]
[Site "Chelyabinsk"]
[Date "2020.09.30"]
[Round "4.5"]
[White "Kalenichenko, Alina"]
[Black "Mironenko, Galina"]
[Result "1-0"]
[ECO "E47"]
[WhiteElo "1513"]
[BlackElo "2100"]
[Annotator "ChessBase"]
[PlyCount "147"]
[EventDate "2020.10.01"]
[EventType "swiss"]
[EventCountry "RUS"]
[SourceTitle "playchess.com"]
[Source "ChessBase"]
[SourceQuality "1"]
[TimeControl "5400+30"]

1. d4 {[%emt 0:00:00]} Nf6 {[%emt 0:00:00]} 2. c4 {[%emt 0:00:00]} e6 {[%emt 0:00:00]} 3. Nc3 {[%emt 0:00:00]} Bb4 {[%emt 0:00:00]} 4. e3 {[%emt 0:00:00]} O-O {[%emt 0:00:02]} 5. Bd3 {[%emt 0:00:00]} c5 {[%emt 0:00:05]} 6. Nf3 {[%emt 0:00:00]} d5 {[%emt 0:00:12]} 7. O-O {[%emt 0:00:03]} cxd4 {[%emt 0:00:08]} 8. exd4 {[%emt 0:00:22]} dxc4 {[%emt 0:00:08]} 9. Bxc4 {[%emt 0:00:05]} b6 {[%emt 0:00:08]} 10. Bg5 {[%emt 0:01:12]} Bb7 {[%emt 0:00:11]} 11. Qe2 {[%emt 0:02:10]} Nbd7 {[%emt 0:07:56]} 12. Rac1 {[%emt 0:02:29]} Rc8 {[%emt 0:06:54]} 13. Bb3 {[%emt 0:01:13]} Re8 {[%emt 0:03:24]} 14. Ne5 {[%emt 0:07:22]} h6 {[%emt 0:11:50]} 15. Bh4 {[%emt 0:00:49]} Be7 {[%emt 0:08:04]} 16. Nxf7 {[%emt 0:06:53]} Qc7 {[%emt 0:05:33]} 17. Qxe6 {[%emt 0:04:58]} Nf8 {[%emt 0:08:11]} 18. Qf5 {[%emt 0:04:24]} g6 {[%emt 0:03:00]} 19. Nd6+ {[%emt 0:12:46]} Kh7 {[%emt 0:00:55]} 20. Nxe8 {[%emt 0:00:12]} Rxe8 {[%emt 0:00:49]} 21. Qd3 {[%emt 0:01:10]} Qf4 {[%emt 0:12:24]} 22. Bg3 {[%emt 0:01:12]} Qg4 {[%emt 0:01:17]} 23. Rfe1 {[%emt 0:02:51]} h5 {[%emt 0:01:51]} 24. f3 {[%emt 0:05:54]} Qd7 {[%emt 0:05:08]} 25. Ba4 {[%emt 0:01:32]} Bc6 {[%emt 0:00:12]} 26. Bxc6 {[%emt 0:00:10]} Qxc6 {[%emt 0:00:05]} 27. Ne4 {[%emt 0:00:37]} Qa8 {[%emt 0:00:39]} 28. Ng5+ {[%emt 0:02:31]} Kg8 {[%emt 0:05:30]} 29. Qc4+ {[%emt 0:08:31]} Qd5 {[%emt 0:00:59]} 30. Qxd5+ {[%emt 0:00:20]} Nxd5 {[%emt 0:00:06]} 31. h4 {[%emt 0:05:39]} Rd8 {[%emt 0:04:44]} 32. a3 {[%emt 0:00:51]} Bf6 {[%emt 0:01:01]} 33. Be5 {[%emt 0:00:15]} Bxg5 {[%emt 0:00:54]} 34. hxg5 {[%emt 0:00:06]} Kf7 {[%emt 0:00:27]} 35. Rc6 {[%emt 0:01:03]} Rd7 {[%emt 0:01:34]} 36. Rec1 {[%emt 0:01:49]} Ne6 {[%emt 0:00:38]} 37. Rd6 {[%emt 0:01:04]} Rxd6 {[%emt 0:00:44]} 38. Bxd6 {[%emt 0:00:05]} Nxg5 {[%emt 0:00:59]} 39. Rc8 {[%emt 0:03:29]} Ne6 {[%emt 0:00:42]} 40. Be5 {[%emt 0:00:16]} g5 {[%emt 0:01:43]} 41. Rh8 {[%emt 0:00:34]} Kg6 {[%emt 0:01:16]} 42. Ra8 {[%emt 0:00:52]} a5 {[%emt 0:00:55]} 43. Ra7 {[%emt 0:00:25]} g4 {[%emt 0:02:34]} 44. Rd7 {[%emt 0:01:51]} Ne3 {[%emt 0:00:41]} 45. Rd6 {[%emt 0:00:28]} Kf5 {[%emt 0:00:42]} 46. Rxb6 {[%emt 0:00:22]} gxf3 {[%emt 0:00:31]} 47. gxf3 {[%emt 0:00:08]} Nc4 {[%emt 0:01:31]} 48. Rb5 {[%emt 0:00:15]} a4 {[%emt 0:00:29]} 49. Kf2 {[%emt 0:00:38]} h4 {[%emt 0:00:50]} 50. Rb4 {[%emt 0:00:13]} Nd2 {[%emt 0:00:16]} 51. Bh2 {[%emt 0:01:17]} Ng5 {[%emt 0:00:47]} 52. Rb5+ {[%emt 0:01:26]} Kg6 {[%emt 0:02:00]} 53. Bf4 {[%emt 0:01:54]} Nh3+ {[%emt 0:00:31]} 54. Ke3 {[%emt 0:00:07]} Nf1+ {[%emt 0:00:43]} 55. Ke4 {[%emt 0:00:07]} Ng3+ {[%emt 0:02:02]} 56. Ke5 {[%emt 0:00:33]} Ng1 {[%emt 0:00:33]} 57. Bxg3 {[%emt 0:05:07]} hxg3 {[%emt 0:00:09]} 58. f4 {[%emt 0:00:40]} g2 {[%emt 0:02:24]} 59. f5+ {[%emt 0:01:22]} Kh5 {[%emt 0:00:49]} 60. Rb8 {[%emt 0:01:06]} Nh3 {[%emt 0:00:30]} 61. Rh8+ {[%emt 0:00:09]} Kg4 {[%emt 0:00:17]} 62. Rg8+ {[%emt 0:00:23]} Ng5 {[%emt 0:00:10]} 63. Kf6 {[%emt 0:00:04]} g1=Q {[%emt 0:01:03]} 64. Rxg5+ {[%emt 0:00:06]} Kf4 {[%emt 0:00:15]} 65. Rxg1 {[%emt 0:00:05]} Ke4 {[%emt 0:00:04]} 66. Ke6 {[%emt 0:00:12]} Kxd4 {[%emt 0:00:05]} 67. f6 {[%emt 0:00:06]} Kc4 {[%emt 0:00:03]} 68. f7 {[%emt 0:00:05]} Kb3 {[%emt 0:00:03]} 69. f8=Q {[%emt 0:00:09]} Ka2 {[%emt 0:00:06]} 70. Qf6 {[%emt 0:00:21]} Kb3 {[%emt 0:00:07]} 71. Rg3+ {[%emt 0:00:08]} Ka2 {[%emt 0:00:05]} 72. Qc3 {[%emt 0:00:20]} Ka1 {[%emt 0:00:08]} 73. Rg1+ {[%emt 0:00:06]} Ka2 {[%emt 0:00:04]} 74. Qc4+ 1-0

[Event "Ural District-ch Women 2020"]
[Site "Chelyabinsk"]
[Date "2020.10.01"]
[Round "5.1"]
[White "Semenova, Elena"]
[Black "Shamsutdinova, Karina"]
[Result "1-0"]
[ECO "B40"]
[WhiteElo "2283"]
[BlackElo "1763"]
[Annotator "ChessBase"]
[PlyCount "71"]
[EventDate "2020.10.01"]
[EventType "swiss"]
[EventCountry "RUS"]
[SourceTitle "playchess.com"]
[Source "ChessBase"]
[SourceQuality "1"]
[TimeControl "5400+30"]

1. e4 {[%emt 0:00:00]} c5 {[%emt 0:00:00]} 2. Nf3 {[%emt 0:00:00]} e6 {[%emt 0:00:00]} 3. d4 {[%emt 0:00:00]} cxd4 {[%emt 0:00:00]} 4. Nxd4 {[%emt 0:00:00]} Nf6 {[%emt 0:00:34]} 5. Nc3 {[%emt 0:00:15]} Nc6 {[%emt 0:00:14]} 6. Nxc6 {[%emt 0:00:38]} bxc6 {[%emt 0:00:09]} 7. e5 {[%emt 0:00:14]} Nd5 {[%emt 0:00:09]} 8. Ne4 {[%emt 0:00:30]} Qc7 {[%emt 0:00:18]} 9. f4 {[%emt 0:00:13]} Qb6 {[%emt 0:00:19]} 10. c4 {[%emt 0:01:05]} Bb4+ {[%emt 0:00:24]} 11. Ke2 {[%emt 0:00:30]} f5 {[%emt 0:00:46]} 12. Nf2 {[%emt 0:08:49]} Nc3+ {[%emt 0:15:55]} 13. bxc3 {[%emt 0:00:38]} Bxc3 {[%emt 0:00:04]} 14. Ba3 {[%emt 0:18:13]} Bxa1 {[%emt 0:00:15]} 15. Qxa1 {[%emt 0:00:21]} Ba6 {[%emt 0:07:18]} 16. Qc3 {[%emt 0:07:07]} Rb8 {[%emt 0:14:02]} 17. Kf3 {[%emt 0:03:50]} Rg8 {[%emt 0:15:33]} 18. Bd6 {[%emt 0:06:10]} Ra8 {[%emt 0:02:25]} 19. h4 {[%emt 0:12:09]} h6 {[%emt 0:05:14]} 20. c5 {[%emt 0:04:55]} Qb7 {[%emt 0:00:14]} 21. Bd3 {[%emt 0:00:17]} Bxd3 {[%emt 0:07:41]} 22. Qxd3 {[%emt 0:01:17]} Qb5 {[%emt 0:12:39]} 23. Qc2 {[%emt 0:06:06]} Qa5 {[%emt 0:03:13]} 24. a4 {[%emt 0:04:07]} Kf7 {[%emt 0:03:35]} 25. g4 {[%emt 0:00:47]} g6 {[%emt 0:01:03]} 26. h5 {[%emt 0:00:27]} Qb4 {[%emt 0:03:26]} 27. Rb1 {[%emt 0:08:55]} Qa3+ {[%emt 0:02:14]} 28. Rb3 {[%emt 0:00:25]} Qa1 {[%emt 0:02:12]} 29. hxg6+ {[%emt 0:00:23]} Kxg6 {[%emt 0:01:19]} 30. gxf5+ {[%emt 0:00:20]} exf5 {[%emt 0:00:21]} 31. Ke2 {[%emt 0:02:35]} h5 {[%emt 0:01:43]} 32. Nd1 {[%emt 0:03:11]} Kh6 {[%emt 0:00:51]} 33. Ne3 {[%emt 0:00:23]} h4 {[%emt 0:00:39]} 34. Nxf5+ {[%emt 0:00:34]} Kh5 {[%emt 0:00:04]} 35. Ne3 {[%emt 0:00:07]} Qxa4 {[%emt 0:01:38]} 36. Qh7# {[%emt 0:00:05]} 1-0